[Event "Titled Tuesday Blitz March 28 Early 2023"]
[White "BenchGM"]
[Black "lemayvega"]
[WhiteElo "2366"]
[BlackElo "2529"]
[Result "0-1"]
[Round "02"]
[TimeControl "180+2"]
[Date "2023.03.28"]
[WhiteClock "0:00:14"]
[BlackClock "0:00:15"]

1. d4 {[%clk 0:03:00]}  Nf6 {[%clk 0:02:57]} 2. Bg5 {[%clk 0:03:00]}  c5 {[%clk 0:02:56]} 3. d5 {[%clk 0:02:59]}  Qb6 {[%clk 0:02:55]} 4. Nc3 {[%clk 0:02:57]}  d6 {[%clk 0:02:50]} 5. Qc1 {[%clk 0:02:32]}  Bf5 {[%clk 0:02:46]} 6. Nf3 {[%clk 0:02:20]}  Nbd7 {[%clk 0:02:44]} 7. Nd2 {[%clk 0:02:19]}  h6 {[%clk 0:02:26]} 8. Bh4 {[%clk 0:02:12]}  g5 {[%clk 0:02:25]} 9. Bg3 {[%clk 0:02:12]}  Bg7 {[%clk 0:02:26]} 10. e4 {[%clk 0:02:10]}  Bg6 {[%clk 0:02:25]} 11. Nc4 {[%clk 0:02:09]}  Qc7 {[%clk 0:02:18]} 12. Bd3 {[%clk 0:00:53]}  Nh5 {[%clk 0:02:11]} 13. Nb5 {[%clk 0:00:48]}  Qb8 {[%clk 0:02:10]} 14. f3 {[%clk 0:00:21]}  Nxg3 {[%clk 0:02:06]} 15. hxg3 {[%clk 0:00:22]}  a6 {[%clk 0:02:06]} 16. Nc3 {[%clk 0:00:22]}  b5 {[%clk 0:02:06]} 17. Na5 {[%clk 0:00:22]}  c4 {[%clk 0:02:02]} 18. Nc6 {[%clk 0:00:20]}  Qb6 {[%clk 0:02:00]} 19. Be2 {[%clk 0:00:21]}  Ne5 {[%clk 0:01:56]} 20. Nd1 {[%clk 0:00:20]}  Nxc6 {[%clk 0:01:52]} 21. dxc6 {[%clk 0:00:21]}  Qxc6 {[%clk 0:01:51]} 22. c3 {[%clk 0:00:21]}  O-O {[%clk 0:01:45]} 23. Ne3 {[%clk 0:00:21]}  f5 {[%clk 0:01:38]} 24. exf5 {[%clk 0:00:21]}  Bxf5 {[%clk 0:01:38]} 25. Nxf5 {[%clk 0:00:20]}  Rxf5 {[%clk 0:01:39]} 26. Qc2 {[%clk 0:00:21]}  Rd5 {[%clk 0:01:33]} 27. f4 {[%clk 0:00:19]}  Rf8 {[%clk 0:01:22]} 28. Bf3 {[%clk 0:00:17]}  gxf4 {[%clk 0:01:16]} 29. Qe4 {[%clk 0:00:14]}  Re5 {[%clk 0:01:14]} 30. Qxe5 {[%clk 0:00:14]}  Bxe5 {[%clk 0:00:36]} 31. Bxc6 {[%clk 0:00:14]}  fxg3 {[%clk 0:00:35]} 32. O-O-O {[%clk 0:00:14]}  Rf2 {[%clk 0:00:34]} 33. Bd5+ {[%clk 0:00:12]}  Kg7 {[%clk 0:00:34]} 34. Rdf1 {[%clk 0:00:12]}  Kg6 {[%clk 0:00:29]} 35. Rxf2 {[%clk 0:00:12]}  gxf2 {[%clk 0:00:30]} 36. Rf1 {[%clk 0:00:12]}  Bg3 {[%clk 0:00:30]} 37. Kd1 {[%clk 0:00:12]}  Kg5 {[%clk 0:00:30]} 38. Ke2 {[%clk 0:00:13]}  Kf4 {[%clk 0:00:31]} 39. Bf3 {[%clk 0:00:13]}  e5 {[%clk 0:00:30]} 40. Rh1 {[%clk 0:00:13]}  e4 {[%clk 0:00:27]} 41. Bh5 {[%clk 0:00:13]}  d5 {[%clk 0:00:22]} 42. Bf7 {[%clk 0:00:13]}  Ke5 {[%clk 0:00:15]} 43. Rh5+ {[%clk 0:00:13]}  Kf6 {[%clk 0:00:11]} 44. Bxd5 {[%clk 0:00:14]}  e3 {[%clk 0:00:11]} 45. Rxh6+ {[%clk 0:00:13]}  Ke5 {[%clk 0:00:10]} 46. Bf3 {[%clk 0:00:14]}  a5 {[%clk 0:00:10]} 47. Ra6 {[%clk 0:00:14]}  b4 {[%clk 0:00:09]} 48. Rxa5+ {[%clk 0:00:15]}  Kf4 {[%clk 0:00:09]} 49. cxb4 {[%clk 0:00:15]}  Bh2 {[%clk 0:00:07]} 50. Rc5 {[%clk 0:00:14]}  Bg1 {[%clk 0:00:06]} 51. Rxc4+ {[%clk 0:00:15]}  Kg3 {[%clk 0:00:07]} 52. Rg4+ {[%clk 0:00:15]}  Kh2 {[%clk 0:00:08]} 53. b5 {[%clk 0:00:14]}  Kh1 {[%clk 0:00:08]} 54. Rh4+ {[%clk 0:00:12]}  Bh2 {[%clk 0:00:09]} 55. b6 {[%clk 0:00:12]}  Kg1 {[%clk 0:00:09]} 56. Rxh2 {[%clk 0:00:10]}  f1=Q+ {[%clk 0:00:09]} 57. Kxe3 {[%clk 0:00:11]}  Kxh2 {[%clk 0:00:09]} 58. b7 {[%clk 0:00:10]}  Qb5 {[%clk 0:00:10]} 59. Ke4 {[%clk 0:00:10]}  Qxb7+ {[%clk 0:00:10]} 60. Ke5 {[%clk 0:00:11]}  Qxb2+ {[%clk 0:00:11]} 61. Kd6 {[%clk 0:00:11]}  Qa3+ {[%clk 0:00:11]} 62. Ke5 {[%clk 0:00:12]}  Qxa2 {[%clk 0:00:12]} 63. Kd6 {[%clk 0:00:13]}  Qb2 {[%clk 0:00:13]} 64. Ke6 {[%clk 0:00:13]}  Kg3 {[%clk 0:00:13]} 65. Kd6 {[%clk 0:00:13]}  Qd2+ {[%clk 0:00:14]} 66. Ke6 {[%clk 0:00:14]}  Qf4 {[%clk 0:00:15]} 0-1


[Site "https://www.chess.com"]

[Event "Titled Tuesday Blitz March 28 Early 2023"]
[White "Bochnicka, Vladimir"]
[Black "Hirneise, Jens"]
[WhiteFideId "14943450"]
[BlackFideId "24614734"]
[WhiteElo "2094"]
[BlackElo "2345"]
[Result "1-0"]
[Round "02"]
[TimeControl "180+2"]
[Date "2023.03.28"]
[WhiteClock "0:00:41"]
[BlackClock "0:00:10"]

1. e4 {[%clk 0:03:00]}  e5 {[%clk 0:02:57]} 2. Nf3 {[%clk 0:03:01]}  Nf6 {[%clk 0:02:54]} 3. Nxe5 {[%clk 0:02:59]}  d6 {[%clk 0:02:54]} 4. Nf3 {[%clk 0:02:58]}  Nxe4 {[%clk 0:02:54]} 5. Qe2 {[%clk 0:02:59]}  Qe7 {[%clk 0:02:54]} 6. d3 {[%clk 0:02:58]}  Nf6 {[%clk 0:02:53]} 7. Bg5 {[%clk 0:02:59]}  Be6 {[%clk 0:02:49]} 8. Nc3 {[%clk 0:02:59]}  Nc6 {[%clk 0:02:43]} 9. O-O-O {[%clk 0:02:56]}  O-O-O {[%clk 0:02:43]} 10. d4 {[%clk 0:02:53]}  Bg4 {[%clk 0:02:36]} 11. h3 {[%clk 0:02:46]}  Bh5 {[%clk 0:02:28]} 12. g4 {[%clk 0:02:41]}  Bg6 {[%clk 0:02:27]} 13. Qb5 {[%clk 0:02:30]}  h6 {[%clk 0:02:00]} 14. Bh4 {[%clk 0:02:16]}  Qd7 {[%clk 0:01:47]} 15. Bg2 {[%clk 0:02:15]}  Be7 {[%clk 0:01:39]} 16. Rhe1 {[%clk 0:01:54]}  Rhe8 {[%clk 0:01:33]} 17. Ne5 {[%clk 0:01:52]}  dxe5 {[%clk 0:01:21]} 18. dxe5 {[%clk 0:01:52]}  Nd5 {[%clk 0:01:08]} 19. Rxd5 {[%clk 0:01:30]}  Qe6 {[%clk 0:01:05]} 20. Bxe7 {[%clk 0:01:29]}  Rxe7 {[%clk 0:00:51]} 21. f4 {[%clk 0:01:26]}  Rxd5 {[%clk 0:00:47]} 22. Bxd5 {[%clk 0:01:26]}  Qd7 {[%clk 0:00:47]} 23. f5 {[%clk 0:01:19]}  Bh7 {[%clk 0:00:47]} 24. e6 {[%clk 0:01:18]}  Qe8 {[%clk 0:00:43]} 25. Rd1 {[%clk 0:01:14]}  fxe6 {[%clk 0:00:42]} 26. Bxe6+ {[%clk 0:01:10]}  Kb8 {[%clk 0:00:41]} 27. Nd5 {[%clk 0:01:05]}  Rxe6 {[%clk 0:00:41]} 28. fxe6 {[%clk 0:01:04]}  Qxe6 {[%clk 0:00:42]} 29. Nb4 {[%clk 0:00:57]}  Kc8 {[%clk 0:00:19]} 30. Nxc6 {[%clk 0:00:45]}  Qxc6 {[%clk 0:00:18]} 31. Qxc6 {[%clk 0:00:43]}  bxc6 {[%clk 0:00:19]} 32. Rf1 {[%clk 0:00:43]}  Be4 {[%clk 0:00:16]} 33. Rf7 {[%clk 0:00:43]}  g5 {[%clk 0:00:10]} 34. Rf6 {[%clk 0:00:41]} 1-0


[Site "https://www.chess.com"]

[Event "Titled Tuesday Blitz March 28 Early 2023"]
[White "Migot, Tangi"]
[Black "Shukhman, Anna"]
[WhiteFideId "662445"]
[BlackFideId "54180058"]
[WhiteElo "2527"]
[BlackElo "2125"]
[Result "0-1"]
[Round "02"]
[TimeControl "180+2"]
[Date "2023.03.28"]
[WhiteClock "0:02:00"]
[BlackClock "0:00:50"]

1. f4 {[%clk 0:03:00]}  e5 {[%clk 0:02:57]} 2. e4 {[%clk 0:03:00]}  d5 {[%clk 0:02:55]} 3. exd5 {[%clk 0:03:00]}  e4 {[%clk 0:02:55]} 4. Nc3 {[%clk 0:02:59]}  Nf6 {[%clk 0:02:55]} 5. d3 {[%clk 0:02:59]}  Bb4 {[%clk 0:02:48]} 6. Ne2 {[%clk 0:02:53]}  O-O {[%clk 0:02:46]} 7. dxe4 {[%clk 0:02:52]}  Nxe4 {[%clk 0:02:43]} 8. Qd3 {[%clk 0:02:52]}  Re8 {[%clk 0:02:42]} 9. Be3 {[%clk 0:02:47]}  Bf5 {[%clk 0:02:22]} 10. Qb5 {[%clk 0:02:37]}  Nxc3 {[%clk 0:02:15]} 11. Qxb4 {[%clk 0:02:31]}  Nxd5 {[%clk 0:02:09]} 12. Qxb7 {[%clk 0:02:28]}  Nxe3 {[%clk 0:02:07]} 13. Qxa8 {[%clk 0:02:27]}  Nxc2+ {[%clk 0:01:52]} 14. Kf2 {[%clk 0:02:27]}  Qd6 {[%clk 0:01:14]} 15. Rc1 {[%clk 0:02:18]}  Qb6+ {[%clk 0:01:04]} 16. Kg3 {[%clk 0:02:15]}  Re3+ {[%clk 0:01:01]} 17. Qf3 {[%clk 0:02:14]}  Rxf3+ {[%clk 0:00:58]} 18. gxf3 {[%clk 0:02:15]}  Ne3 {[%clk 0:00:57]} 19. Rc3 {[%clk 0:02:00]}  Nd1 {[%clk 0:00:50]} 0-1


[Site "https://www.chess.com"]

[Event "Titled Tuesday Blitz March 28 Early 2023"]
[White "Arencibia Monduy, Antonio"]
[Black "Real_taiatai"]
[WhiteFideId "3507939"]
[WhiteElo "2522"]
[BlackElo "2343"]
[Result "0-1"]
[Round "02"]
[TimeControl "180+2"]
[Date "2023.03.28"]
[WhiteClock "0:00:06"]
[BlackClock "0:00:16"]

1. e4 {[%clk 0:03:00]}  c5 {[%clk 0:02:57]} 2. Nf3 {[%clk 0:03:00]}  Nc6 {[%clk 0:02:55]} 3. c3 {[%clk 0:03:01]}  Nf6 {[%clk 0:02:55]} 4. e5 {[%clk 0:02:59]}  Nd5 {[%clk 0:02:55]} 5. d4 {[%clk 0:03:00]}  cxd4 {[%clk 0:02:55]} 6. cxd4 {[%clk 0:03:01]}  d6 {[%clk 0:02:54]} 7. exd6 {[%clk 0:03:01]}  e6 {[%clk 0:02:54]} 8. Nc3 {[%clk 0:03:01]}  Qxd6 {[%clk 0:02:51]} 9. Bd3 {[%clk 0:02:59]}  Be7 {[%clk 0:02:50]} 10. O-O {[%clk 0:02:58]}  O-O {[%clk 0:02:50]} 11. Qe2 {[%clk 0:02:59]}  Nf4 {[%clk 0:02:39]} 12. Bxf4 {[%clk 0:02:53]}  Qxf4 {[%clk 0:02:40]} 13. d5 {[%clk 0:02:47]}  Nb4 {[%clk 0:02:32]} 14. Bc4 {[%clk 0:02:32]}  Bf6 {[%clk 0:02:05]} 15. dxe6 {[%clk 0:02:25]}  fxe6 {[%clk 0:02:04]} 16. Bxe6+ {[%clk 0:02:24]}  Kh8 {[%clk 0:02:03]} 17. Bxc8 {[%clk 0:02:17]}  Raxc8 {[%clk 0:02:04]} 18. Rfc1 {[%clk 0:01:50]}  Nd5 {[%clk 0:01:45]} 19. Qb5 {[%clk 0:01:17]}  Nxc3 {[%clk 0:01:44]} 20. bxc3 {[%clk 0:01:16]}  Rxc3 {[%clk 0:01:28]} 21. Rxc3 {[%clk 0:01:11]}  Bxc3 {[%clk 0:01:29]} 22. Rd1 {[%clk 0:01:06]}  b6 {[%clk 0:00:54]} 23. Qd7 {[%clk 0:00:57]}  a5 {[%clk 0:00:25]} 24. Qc6 {[%clk 0:00:50]}  Qf6 {[%clk 0:00:24]} 25. Qc7 {[%clk 0:00:33]}  Bb4 {[%clk 0:00:22]} 26. h3 {[%clk 0:00:21]}  Bc5 {[%clk 0:00:22]} 27. Qd7 {[%clk 0:00:20]}  h6 {[%clk 0:00:22]} 28. Qd3 {[%clk 0:00:19]}  Qe6 {[%clk 0:00:21]} 29. a4 {[%clk 0:00:18]}  Qa2 {[%clk 0:00:21]} 30. Rd2 {[%clk 0:00:10]}  Qxa4 {[%clk 0:00:21]} 31. Ne5 {[%clk 0:00:09]}  Qa1+ {[%clk 0:00:20]} 32. Kh2 {[%clk 0:00:08]}  Qxe5+ {[%clk 0:00:21]} 33. g3 {[%clk 0:00:09]}  Bxf2 {[%clk 0:00:19]} 34. Re2 {[%clk 0:00:06]}  Bxg3+ {[%clk 0:00:18]} 35. Kg2 {[%clk 0:00:05]}  Qxe2+ {[%clk 0:00:15]} 36. Qxe2 {[%clk 0:00:05]}  Rf2+ {[%clk 0:00:15]} 37. Qxf2 {[%clk 0:00:06]}  Bxf2 {[%clk 0:00:16]} 38. Kxf2 {[%clk 0:00:06]} 0-1


[Site "https://www.chess.com"]

[Event "Titled Tuesday Blitz March 28 Early 2023"]
[White "Sanchez Alvares, Kelvin Antonio"]
[Black "Fathy, Elameir"]
[WhiteFideId "3906680"]
[BlackFideId "10600396"]
[WhiteElo "2217"]
[BlackElo "2311"]
[Result "1-0"]
[Round "02"]
[TimeControl "180+2"]
[Date "2023.03.28"]
[WhiteClock "0:00:05"]
[BlackClock "0:01:45"]

1. e4 {[%clk 0:02:48]}  c6 {[%clk 0:03:00]} 2. d4 {[%clk 0:02:43]}  d5 {[%clk 0:03:01]} 3. e5 {[%clk 0:02:41]}  Bf5 {[%clk 0:03:00]} 4. Nc3 {[%clk 0:02:38]}  e6 {[%clk 0:03:00]} 5. g4 {[%clk 0:02:35]}  Bg6 {[%clk 0:03:00]} 6. Nge2 {[%clk 0:02:31]}  c5 {[%clk 0:03:00]} 7. h4 {[%clk 0:02:30]}  h5 {[%clk 0:03:01]} 8. Nf4 {[%clk 0:02:26]}  Bh7 {[%clk 0:03:01]} 9. Nxh5 {[%clk 0:02:20]}  Nc6 {[%clk 0:03:02]} 10. Bb5 {[%clk 0:02:03]}  Ne7 {[%clk 0:02:59]} 11. Bg5 {[%clk 0:01:59]}  Qb6 {[%clk 0:02:58]} 12. dxc5 {[%clk 0:01:34]}  Qxc5 {[%clk 0:02:59]} 13. Be3 {[%clk 0:01:33]}  Qb4 {[%clk 0:02:42]} 14. Bd4 {[%clk 0:01:16]}  Qxb2 {[%clk 0:02:11]} 15. Nxd5 {[%clk 0:00:57]}  Qxc2 {[%clk 0:01:55]} 16. Ndf6+ {[%clk 0:00:23]}  gxf6 {[%clk 0:01:43]} 17. Nxf6+ {[%clk 0:00:18]}  Kd8 {[%clk 0:01:44]} 18. Bb6+ {[%clk 0:00:09]}  Kc8 {[%clk 0:01:44]} 19. Qd7+ {[%clk 0:00:05]}  Kb8 {[%clk 0:01:45]} 20. Bc7# {[%clk 0:00:05]} 1-0


[Site "https://www.chess.com"]

[Event "Titled Tuesday Blitz March 28 Early 2023"]
[White "crosky"]
[Black "Kozin, Yuri"]
[BlackFideId "4129920"]
[WhiteElo "2339"]
[BlackElo "2520"]
[Result "0-1"]
[Round "02"]
[TimeControl "180+2"]
[Date "2023.03.28"]
[WhiteClock "0:00:41"]
[BlackClock "0:00:33"]

1. c4 {[%clk 0:03:00]}  c6 {[%clk 0:02:59]} 2. Nf3 {[%clk 0:03:00]}  d5 {[%clk 0:02:59]} 3. e3 {[%clk 0:03:01]}  Nf6 {[%clk 0:03:00]} 4. Nc3 {[%clk 0:03:02]}  a6 {[%clk 0:02:59]} 5. Be2 {[%clk 0:03:01]}  Bf5 {[%clk 0:02:59]} 6. Qb3 {[%clk 0:02:54]}  b5 {[%clk 0:02:55]} 7. cxd5 {[%clk 0:02:53]}  cxd5 {[%clk 0:02:47]} 8. a4 {[%clk 0:02:52]}  bxa4 {[%clk 0:02:23]} 9. Qb7 {[%clk 0:02:53]}  Nbd7 {[%clk 0:02:20]} 10. Nxd5 {[%clk 0:02:42]}  Nxd5 {[%clk 0:02:18]} 11. Qxd5 {[%clk 0:02:43]}  e6 {[%clk 0:02:19]} 12. Qd4 {[%clk 0:02:28]}  Nc5 {[%clk 0:02:08]} 13. O-O {[%clk 0:02:23]}  Bd6 {[%clk 0:02:00]} 14. Qxg7 {[%clk 0:02:21]}  Rf8 {[%clk 0:01:57]} 15. d4 {[%clk 0:02:08]}  Nb3 {[%clk 0:01:49]} 16. Rxa4 {[%clk 0:02:08]}  Qc7 {[%clk 0:01:41]} 17. Bxa6 {[%clk 0:01:45]}  Nxc1 {[%clk 0:01:32]} 18. Bb5+ {[%clk 0:01:45]}  Ke7 {[%clk 0:01:32]} 19. Qg5+ {[%clk 0:01:30]}  f6 {[%clk 0:01:32]} 20. Qg7+ {[%clk 0:01:31]}  Rf7 {[%clk 0:01:31]} 21. Qxf7+ {[%clk 0:01:19]}  Kxf7 {[%clk 0:01:30]} 22. Rxa8 {[%clk 0:01:20]}  Bd3 {[%clk 0:01:13]} 23. Be8+ {[%clk 0:01:12]}  Kg7 {[%clk 0:01:08]} 24. Rd1 {[%clk 0:01:03]}  Be2 {[%clk 0:00:58]} 25. Re1 {[%clk 0:01:02]}  Nd3 {[%clk 0:00:51]} 26. Rea1 {[%clk 0:00:47]}  Bxf3 {[%clk 0:00:42]} 27. gxf3 {[%clk 0:00:46]}  Qc2 {[%clk 0:00:33]} 28. R1a7+ {[%clk 0:00:41]}  Kh6 {[%clk 0:00:33]} 0-1


[Site "https://www.chess.com"]

[Event "Titled Tuesday Blitz March 28 Early 2023"]
[White "Shevtchenko, Olesya"]
[Black "Ovezdurdyyeva, Jemal"]
[WhiteFideId "24131890"]
[BlackFideId "14001888"]
[WhiteElo "2003"]
[BlackElo "2043"]
[Result "1-0"]
[Round "02"]
[TimeControl "180+2"]
[Date "2023.03.28"]
[WhiteClock "0:01:25"]
[BlackClock "0:00:03"]

1. e4 {[%clk 0:03:00]}  d6 {[%clk 0:02:59]} 2. d4 {[%clk 0:03:00]}  Nf6 {[%clk 0:02:59]} 3. Nc3 {[%clk 0:03:00]}  g6 {[%clk 0:02:59]} 4. Nf3 {[%clk 0:02:57]}  c6 {[%clk 0:02:59]} 5. Be3 {[%clk 0:02:51]}  b5 {[%clk 0:02:58]} 6. Bd3 {[%clk 0:02:49]}  a5 {[%clk 0:02:56]} 7. e5 {[%clk 0:02:48]}  dxe5 {[%clk 0:02:55]} 8. dxe5 {[%clk 0:02:49]}  Nd5 {[%clk 0:02:55]} 9. Nxd5 {[%clk 0:02:44]}  Qxd5 {[%clk 0:02:54]} 10. Qe2 {[%clk 0:02:41]}  Bg7 {[%clk 0:02:47]} 11. c4 {[%clk 0:02:38]}  bxc4 {[%clk 0:02:45]} 12. Bxc4 {[%clk 0:02:38]}  Qd8 {[%clk 0:02:34]} 13. Rd1 {[%clk 0:02:33]}  Qc7 {[%clk 0:02:31]} 14. O-O {[%clk 0:02:30]}  O-O {[%clk 0:02:28]} 15. h3 {[%clk 0:02:26]}  Bf5 {[%clk 0:02:25]} 16. Bc5 {[%clk 0:02:21]}  h6 {[%clk 0:01:56]} 17. g4 {[%clk 0:02:09]}  Bc8 {[%clk 0:01:48]} 18. Qe4 {[%clk 0:02:06]}  Na6 {[%clk 0:01:36]} 19. Be3 {[%clk 0:02:01]}  Kh7 {[%clk 0:01:14]} 20. Rfe1 {[%clk 0:01:54]}  Rb8 {[%clk 0:01:11]} 21. h4 {[%clk 0:01:51]}  Rxb2 {[%clk 0:01:05]} 22. h5 {[%clk 0:01:51]}  f5 {[%clk 0:00:33]} 23. exf6 {[%clk 0:01:38]}  Rxf6 {[%clk 0:00:27]} 24. hxg6+ {[%clk 0:01:32]}  Kh8 {[%clk 0:00:18]} 25. Ng5 {[%clk 0:01:33]}  Rb4 {[%clk 0:00:07]} 26. Nf7+ {[%clk 0:01:29]}  Rxf7 {[%clk 0:00:08]} 27. gxf7 {[%clk 0:01:29]}  e5 {[%clk 0:00:04]} 28. a3 {[%clk 0:01:26]}  Ra4 {[%clk 0:00:03]} 29. Qd3 {[%clk 0:01:25]}  e4 {[%clk 0:00:03]} 30. Qd8+ {[%clk 0:01:25]} 1-0


[Site "https://www.chess.com"]

[Event "Titled Tuesday Blitz March 28 Early 2023"]
[White "Moral Garcia, Serafin"]
[Black "Buscar, Michael"]
[WhiteFideId "2201925"]
[BlackFideId "2603616"]
[WhiteElo "2254"]
[BlackElo "2010"]
[Result "1-0"]
[Round "02"]
[TimeControl "180+2"]
[Date "2023.03.28"]
[WhiteClock "0:01:30"]
[BlackClock "0:00:16"]

1. c4 {[%clk 0:03:00]}  Nf6 {[%clk 0:02:59]} 2. Nc3 {[%clk 0:03:00]}  e6 {[%clk 0:02:59]} 3. Nf3 {[%clk 0:02:56]}  b6 {[%clk 0:02:59]} 4. d4 {[%clk 0:02:55]}  Bb7 {[%clk 0:02:59]} 5. e3 {[%clk 0:02:55]}  c5 {[%clk 0:03:00]} 6. d5 {[%clk 0:02:53]}  exd5 {[%clk 0:02:59]} 7. cxd5 {[%clk 0:02:53]}  d6 {[%clk 0:02:59]} 8. Bc4 {[%clk 0:02:48]}  a6 {[%clk 0:02:58]} 9. a4 {[%clk 0:02:48]}  g6 {[%clk 0:02:54]} 10. O-O {[%clk 0:02:47]}  Bg7 {[%clk 0:02:54]} 11. e4 {[%clk 0:02:47]}  Nbd7 {[%clk 0:02:52]} 12. Bf4 {[%clk 0:02:41]}  Qc7 {[%clk 0:02:42]} 13. h3 {[%clk 0:02:39]}  O-O {[%clk 0:02:38]} 14. Re1 {[%clk 0:02:39]}  Nh5 {[%clk 0:02:11]} 15. Bh2 {[%clk 0:02:38]}  Rae8 {[%clk 0:02:03]} 16. Qd3 {[%clk 0:02:36]}  Ra8 {[%clk 0:01:33]} 17. g4 {[%clk 0:02:29]}  Nhf6 {[%clk 0:01:28]} 18. e5 {[%clk 0:02:29]}  dxe5 {[%clk 0:01:24]} 19. Nxe5 {[%clk 0:02:29]}  Nxe5 {[%clk 0:01:23]} 20. Bxe5 {[%clk 0:02:29]}  Qd7 {[%clk 0:01:22]} 21. Rad1 {[%clk 0:02:19]}  Rfe8 {[%clk 0:01:08]} 22. Qf3 {[%clk 0:02:16]}  Rxe5 {[%clk 0:01:00]} 23. Rxe5 {[%clk 0:02:14]}  Nxg4 {[%clk 0:00:59]} 24. Re4 {[%clk 0:01:51]}  Ne5 {[%clk 0:00:56]} 25. Qg3 {[%clk 0:01:52]}  Nxc4 {[%clk 0:00:47]} 26. Rxc4 {[%clk 0:01:52]}  b5 {[%clk 0:00:47]} 27. Rxc5 {[%clk 0:01:47]}  Rc8 {[%clk 0:00:27]} 28. Rxc8+ {[%clk 0:01:46]}  Bxc8 {[%clk 0:00:27]} 29. d6 {[%clk 0:01:45]}  Bb7 {[%clk 0:00:21]} 30. axb5 {[%clk 0:01:41]}  axb5 {[%clk 0:00:20]} 31. Qe3 {[%clk 0:01:31]}  Qc6 {[%clk 0:00:18]} 32. Nd5 {[%clk 0:01:31]}  Bxb2 {[%clk 0:00:16]} 33. Ne7+ {[%clk 0:01:30]} 1-0


[Site "https://www.chess.com"]

[Event "Titled Tuesday Blitz March 28 Early 2023"]
[White "Estrada Nieto, Julian"]
[Black "Polanco Nunez, Yoel Estarling"]
[WhiteFideId "5101018"]
[BlackFideId "6401783"]
[WhiteElo "2176"]
[BlackElo "2132"]
[Result "1-0"]
[Round "02"]
[TimeControl "180+2"]
[Date "2023.03.28"]
[WhiteClock "0:00:20"]
[BlackClock "0:00:14"]

1. e4 {[%clk 0:03:00]}  e5 {[%clk 0:02:58]} 2. Nf3 {[%clk 0:03:00]}  Nc6 {[%clk 0:02:59]} 3. Bb5 {[%clk 0:03:00]}  a6 {[%clk 0:02:59]} 4. Bxc6 {[%clk 0:02:57]}  dxc6 {[%clk 0:03:00]} 5. O-O {[%clk 0:02:56]}  Ne7 {[%clk 0:02:56]} 6. Nxe5 {[%clk 0:02:50]}  Qd4 {[%clk 0:02:55]} 7. Qh5 {[%clk 0:02:43]}  g6 {[%clk 0:02:51]} 8. Qg5 {[%clk 0:02:41]}  Bg7 {[%clk 0:02:33]} 9. Nf3 {[%clk 0:02:36]}  h6 {[%clk 0:01:38]} 10. Qxe7+ {[%clk 0:02:17]}  Kxe7 {[%clk 0:01:39]} 11. Nxd4 {[%clk 0:02:17]}  Bxd4 {[%clk 0:01:38]} 12. c3 {[%clk 0:02:14]}  Bg7 {[%clk 0:01:39]} 13. d4 {[%clk 0:02:14]}  b6 {[%clk 0:01:36]} 14. Bf4 {[%clk 0:02:13]}  Kd8 {[%clk 0:01:33]} 15. Nd2 {[%clk 0:02:12]}  Be6 {[%clk 0:01:34]} 16. Rfe1 {[%clk 0:01:58]}  Kc8 {[%clk 0:01:33]} 17. Nf3 {[%clk 0:01:56]}  Kb7 {[%clk 0:01:31]} 18. h3 {[%clk 0:01:56]}  Rad8 {[%clk 0:01:29]} 19. Be5 {[%clk 0:01:56]}  f6 {[%clk 0:01:29]} 20. Bg3 {[%clk 0:01:55]}  Rhe8 {[%clk 0:01:28]} 21. b3 {[%clk 0:01:47]}  Bg8 {[%clk 0:01:25]} 22. Rad1 {[%clk 0:01:40]}  g5 {[%clk 0:01:24]} 23. Nd2 {[%clk 0:01:31]}  Bh7 {[%clk 0:01:21]} 24. f3 {[%clk 0:01:30]}  Rd7 {[%clk 0:01:21]} 25. Nc4 {[%clk 0:01:26]}  h5 {[%clk 0:01:13]} 26. h4 {[%clk 0:01:24]}  g4 {[%clk 0:01:11]} 27. Kf2 {[%clk 0:01:17]}  gxf3 {[%clk 0:01:11]} 28. gxf3 {[%clk 0:01:17]}  Bh6 {[%clk 0:01:10]} 29. Ne3 {[%clk 0:01:02]}  Rg7 {[%clk 0:00:56]} 30. Rg1 {[%clk 0:01:01]}  Reg8 {[%clk 0:00:54]} 31. Bh2 {[%clk 0:00:52]}  Rxg1 {[%clk 0:00:51]} 32. Rxg1 {[%clk 0:00:52]}  Rxg1 {[%clk 0:00:46]} 33. Bxg1 {[%clk 0:00:51]}  Bxe3+ {[%clk 0:00:44]} 34. Kxe3 {[%clk 0:00:50]}  Kc8 {[%clk 0:00:42]} 35. Bh2 {[%clk 0:00:51]}  Kd7 {[%clk 0:00:43]} 36. c4 {[%clk 0:00:42]}  Bg6 {[%clk 0:00:40]} 37. f4 {[%clk 0:00:40]}  f5 {[%clk 0:00:37]} 38. e5 {[%clk 0:00:37]}  Bf7 {[%clk 0:00:37]} 39. Bg3 {[%clk 0:00:34]}  Ke6 {[%clk 0:00:37]} 40. Kd3 {[%clk 0:00:32]}  Kd7 {[%clk 0:00:36]} 41. Kc3 {[%clk 0:00:32]}  a5 {[%clk 0:00:36]} 42. a3 {[%clk 0:00:31]}  Be6 {[%clk 0:00:35]} 43. b4 {[%clk 0:00:32]}  axb4+ {[%clk 0:00:34]} 44. Kxb4 {[%clk 0:00:30]}  Kc8 {[%clk 0:00:33]} 45. a4 {[%clk 0:00:31]}  Kb7 {[%clk 0:00:33]} 46. c5 {[%clk 0:00:30]}  Ka6 {[%clk 0:00:32]} 47. cxb6 {[%clk 0:00:28]}  cxb6 {[%clk 0:00:32]} 48. Bf2 {[%clk 0:00:28]}  Bd5 {[%clk 0:00:31]} 49. Be3 {[%clk 0:00:28]}  Be4 {[%clk 0:00:29]} 50. Bc1 {[%clk 0:00:27]}  Bd5 {[%clk 0:00:29]} 51. Ba3 {[%clk 0:00:26]}  Ba2 {[%clk 0:00:29]} 52. a5 {[%clk 0:00:24]}  bxa5+ {[%clk 0:00:28]} 53. Kc5 {[%clk 0:00:24]}  Kb7 {[%clk 0:00:25]} 54. Kd6 {[%clk 0:00:24]}  Bd5 {[%clk 0:00:21]} 55. Kd7 {[%clk 0:00:23]}  Kb6 {[%clk 0:00:16]} 56. Bc5+ {[%clk 0:00:20]}  Kb5 {[%clk 0:00:16]} 57. e6 {[%clk 0:00:21]}  Bxe6+ {[%clk 0:00:15]} 58. Kxe6 {[%clk 0:00:20]}  a4 {[%clk 0:00:14]} 59. Kxf5 {[%clk 0:00:20]}  Kc4 {[%clk 0:00:14]} 60. Ke5 {[%clk 0:00:20]} 1-0


[Site "https://www.chess.com"]